fUSD/lending_fUSD_20240408
["ID","MTS","AMOUNT","RATE_DAILY","PERIOD"]
[321831205,1712548243900,-500.0,0.00020999,2]
[321831206,1712548243910,-500.0,0.00020999,2]
[321831207,1712548243919,-500.0,0.00020999,2]
[321831208,1712548243929,-500.0,0.00020999,2]
[321831209,1712548243939,-500.0,0.00020999,2]
[321831210,1712548243948,-500.0,0.00020999,2]
[321831211,1712548243958,-500.0,0.00020999,2]
[321831212,1712548243968,-517.78,0.00020999,2]
[321831213,1712548243978,-500.0,0.00020999,2]
[321831214,1712548243988,-500.0,0.00020999,2]
[321831215,1712548243997,-500.0,0.00020999,2]
[321831216,1712548244006,-202.1127,0.00020999,2]
[321831217,1712548244015,-500.0,0.00020999,2]
[321831218,1712548244025,-246.07583229,0.00020999,2]
[321831219,1712548244196,-500.0,0.00020999,2]
[321831220,1712548244206,-500.0,0.00020999,2]
[321831221,1712548244215,-500.0,0.00020999,2]
[321831222,1712548244224,-500.0,0.00020999,2]
[321831223,1712548244234,-500.0,0.00020999,2]
[321831224,1712548244244,-500.0,0.00020999,2]
[321831225,1712548244253,-500.0,0.00020999,2]
[321831226,1712548244263,-500.0,0.00020999,2]
[321831227,1712548244273,-500.0,0.00020999,2]
[321831228,1712548244282,-500.0,0.00020999,2]
[321831229,1712548244291,-500.0,0.00020999,2]
[321831230,1712548244300,-500.0,0.00020999,2]
[321831231,1712548244310,-500.0,0.00020999,2]
[321831232,1712548244319,-500.0,0.00020999,2]
[321831233,1712548244329,-500.0,0.00020999,2]
[321831234,1712548244338,-500.0,0.00020999,2]
[321831235,1712548244347,-241.84337401,0.00020999,2]
[321831236,1712548244356,-500.0,0.00020999,2]
[321831237,1712548244366,-500.0,0.00020999,2]
[321831238,1712548244375,-500.0,0.00020999,2]
[321831239,1712548244385,-500.0,0.00020999,2]
[321831240,1712548244394,-500.0,0.00020999,2]
[321831241,1712548244403,-500.0,0.00020999,2]
[321831242,1712548244412,-500.0,0.00020999,2]
[321831243,1712548244422,-500.0,0.00020999,2]
[321831244,1712548244431,-500.0,0.00020999,2]
[321831245,1712548244441,-239.05171456,0.00020999,2]
[321831246,1712548244450,-500.0,0.00020999,2]
[321831247,1712548244459,-500.0,0.00020999,2]
[321831248,1712548244468,-500.0,0.00020999,2]
[321831249,1712548244477,-500.0,0.00020999,2]
[321831250,1712548244486,-500.0,0.00020999,2]
[321831251,1712548244497,-500.0,0.00020999,2]
[321831252,1712548244506,-500.0,0.00020999,2]
[321831253,1712548244516,-500.0,0.00020999,2]
[321831254,1712548244526,-500.0,0.00020999,2]
[321831255,1712548244536,-500.0,0.00020999,2]
[321831256,1712548244546,-500.0,0.00020999,2]
[321831257,1712548244557,-500.0,0.00020999,2]
[321831258,1712548244567,-500.0,0.00020999,2]
[321831259,1712548244579,-500.0,0.00020999,2]
[321831260,1712548244596,-500.0,0.00020999,2]
[321831261,1712548244606,-500.0,0.00020999,2]
[321831262,1712548244615,-500.0,0.00020999,2]
[321831263,1712548244626,-500.0,0.00020999,2]
[321831264,1712548244636,-500.0,0.00020999,2]
[321831265,1712548244646,-177.42103587,0.00020999,2]
[321831266,1712548244655,-500.0,0.00020999,2]
[321831267,1712548244665,-500.0,0.00020999,2]
[321831268,1712548244674,-500.0,0.00020999,2]
[321831269,1712548244684,-500.0,0.00020999,2]
[321831270,1712548244693,-500.0,0.00020999,2]
[321831271,1712548244702,-500.0,0.00020999,2]
[321831272,1712548244712,-500.0,0.00020999,2]
[321831273,1712548244721,-334.96039998,0.00020999,2]
[321831274,1712548244730,-380.42681548,0.00020999,2]
[321831275,1712548244741,-500.0,0.00020999,2]
[321831276,1712548244751,-500.0,0.00020999,2]
[321831277,1712548244762,-500.0,0.00020999,2]
[321831278,1712548244771,-500.0,0.00020999,2]
[321831279,1712548244780,-500.0,0.00020999,2]
[321831280,1712548244791,-500.0,0.00020999,2]
[321831281,1712548244799,-500.0,0.00020999,2]
[321831282,1712548244810,-500.0,0.00020999,2]
[321831283,1712548244819,-500.0,0.00020999,2]
[321831284,1712548244830,-500.0,0.00020999,2]
[321831285,1712548244840,-500.0,0.00020999,2]
[321831286,1712548244850,-310.20337181,0.00020999,2]
[321831287,1712548244860,-500.0,0.00020999,2]
[321831288,1712548244870,-500.0,0.00020999,2]
[321831289,1712548244880,-500.0,0.00020999,2]
[321831290,1712548244893,-500.0,0.00020999,2]
[321831291,1712548244904,-500.0,0.00020999,2]
[321831292,1712548244913,-500.0,0.00020999,2]
[321831293,1712548244923,-500.0,0.00020999,2]
[321831294,1712548244933,-500.0,0.00020999,2]
[321831295,1712548244942,-500.0,0.00020999,2]
[321831296,1712548244952,-216.1796331,0.00020999,2]
[321831297,1712548244964,-500.0,0.00020999,2]
[321831298,1712548244975,-500.0,0.00020999,2]
[321831299,1712548244984,-500.0,0.00020999,2]
[321831300,1712548244994,-500.0,0.00020999,2]
[321831301,1712548245003,-500.0,0.00020999,2]
[321831302,1712548245012,-500.0,0.00020999,2]
[321831303,1712548245021,-325.51558568,0.00020999,2]
[321831304,1712548245031,-722.74,0.00020999,2]
[321831305,1712548245041,-722.74,0.00020999,2]
[321831306,1712548245051,-722.74,0.00020999,2]
[321831307,1712548245060,-722.74,0.00020999,2]
[321831308,1712548245070,-722.74,0.00020999,2]
[321831309,1712548245079,-722.74,0.00020999,2]
[321831310,1712548245089,-722.74,0.00020999,2]
[321831311,1712548245098,-722.74,0.00020999,2]
[321831312,1712548245108,-722.74,0.00020999,2]
[321831313,1712548245117,-722.74,0.00020999,2]
[321831314,1712548245129,-722.74,0.00020999,2]
[321831315,1712548245139,-722.74,0.00020999,2]
[321831316,1712548245150,-722.74,0.00020999,2]
[321831317,1712548245160,-722.74,0.00020999,2]
[321831318,1712548245170,-722.74,0.00020999,2]
[321831319,1712548245180,-722.74,0.00020999,2]
[321831320,1712548245190,-722.74,0.00020999,2]
[321831321,1712548245199,-722.74,0.00020999,2]
[321831322,1712548245209,-722.74,0.00020999,2]
[321831323,1712548245218,-722.74,0.00020999,2]
[321831324,1712548245227,-722.74682384,0.00020999,2]
[321831325,1712548245237,-185.46,0.00020999,2]
[321831326,1712548245247,-500.0,0.00020999,2]
[321831327,1712548245256,-500.0,0.00020999,2]
[321831328,1712548245266,-500.0,0.00020999,2]
[321831329,1712548245275,-500.0,0.00020999,2]
[321831330,1712548245285,-183.3,0.00020999,2]
[321831331,1712548245294,-500.0,0.00020999,2]
[321831332,1712548245304,-500.0,0.00020999,2]
[321831333,1712548245313,-500.0,0.00020999,2]
[321831334,1712548245323,-900.1,0.00020999,2]
[321831335,1712548245332,-500.0,0.00020999,2]
[321831336,1712548245342,-500.0,0.00020999,2]
[321831337,1712548245351,-900.1,0.00020999,2]
[321831338,1712548245361,-500.0,0.00020999,2]
[321831339,1712548245370,-900.1,0.00020999,2]
[321831340,1712548245380,-500.0,0.00020999,2]
[321831341,1712548245389,-500.0,0.00020999,2]
[321831342,1712548245398,-900.1,0.00020999,2]
[321831343,1712548245407,-365.63360599,0.00020999,2]
[321831344,1712548245416,-500.0,0.00020999,2]
[321831345,1712548245425,-900.1,0.00020999,2]
[321831346,1712548245436,-900.1,0.00020999,2]
[321831347,1712548245446,-500.0,0.00020999,2]
[321831348,1712548245455,-900.1,0.00020999,2]
[321831349,1712548245465,-500.0,0.00020999,2]
[321831350,1712548245474,-500.0,0.00020999,2]
[321831351,1712548245484,-2557.2247715,0.00021,2]
[321831352,1712548245493,-188.77099581,0.00021,2]
[321831353,1712548245502,-235900.60887293,0.00021,2]
[321831354,1712548245512,-4404683.102564,0.00021,2]
[321831355,1712548245535,-395723.42110396,0.00021,2]
[321831356,1712548245564,-322.75580841,0.00020992,2]
[321831357,1712548245574,-900.1,0.00020999,2]
[321831358,1712548245584,-790.03096711,0.00021,2]
[321831369,1712548246076,-279.816,0.00020821,2]
[321831374,1712548246088,-220.184,0.00020821,2]
[321831378,1712548246097,-500.0,0.00020991,2]
[321831383,1712548246107,-505.59924936,0.00020992,2]
[321831387,1712548246116,-500.0,0.00020997,2]
[321831391,1712548246125,-500.0,0.00020997,2]
[321831394,1712548246134,-500.0,0.00020997,2]
[321831397,1712548246144,-500.0,0.00020997,2]
[321831399,1712548246153,-124.30553994,0.00020998,2]
[321831402,1712548246164,-435.59213883,0.00020998,2]
[321831405,1712548246173,-500.0,0.00020999,2]
[321831408,1712548246183,-500.0,0.00020999,2]
[321831411,1712548246192,-900.1,0.00020999,2]
[321831414,1712548246202,-33.06276306,0.00020999,2]
[321831443,1712548246425,-263.20488045,0.00020689,2]
[321831447,1712548246449,-96.79511955,0.00020689,2]
[321831449,1712548246458,-173.6321659,0.00020821,2]
[321831508,1712548316160,3602.90466246,6.94e-05,2]
[321831509,1712548330807,893.1199,0.00018719,2]
[321831515,1712548895027,368.23,0.00017703,2]
[321831517,1712549248157,-358.03635741,0.00018366,2]
[321831518,1712549248177,-1043.11487871,0.00018367,2]
[321831519,1712549248195,-293.0,0.00018371,2]
[321831520,1712549248216,-2500.0,0.000185,2]
[321831521,1712549248238,-300.0,0.00018716,2]
[321831522,1712549248257,-150.0,0.00018716,2]
[321831523,1712549248276,-3034.38529286,0.00018717,2]
[321831524,1712549251104,-913.65443353,0.00018717,2]
[321831525,1712549345093,-2500.0,0.000185,2]
[321831526,1712549345112,-5264.90001095,0.00018617,2]
[321831533,1712549408707,349.81,0.00017837,2]
[321831554,1712549432415,-1401.1010691,0.00018617,2]
[321831555,1712549432425,-188.0947876,0.00018618,2]
[321831556,1712549432434,-150.0,0.00018716,2]
[321831557,1712549432444,-3087.33950635,0.00018717,2]
[321831558,1712549432470,-253.89533442,0.00018717,2]
[321831559,1712549432482,-4586.8569813,0.00018717,2]
[321831563,1712549438361,-1527.19124648,0.00018717,2]
[321831564,1712549438479,-165.51971224,0.00018717,2]
[321831565,1712549438682,-1e-08,0.00018717,2]
[321831566,1712549438700,-21603.91715885,0.00018717,2]
[321831567,1712549438710,-155.37993808,0.00018898,2]
[321831568,1712549438719,-750.75588726,0.00018898,2]
[321831569,1712549438727,-1644.93351327,0.00019,2]
[321831570,1712549438736,-1500.0,0.00019,2]
[321831571,1712549438746,-1500.0,0.000195,2]
[321831572,1712549438755,-1216.86,0.00019561,2]
[321831573,1712549438764,-8218.72,0.00019605,2]
[321831574,1712549438773,-269.54,0.00019675,2]
[321831575,1712549438782,-499.99,0.00019675,2]
[321831576,1712549438791,-1046.66847961,0.00019727,2]
[321831577,1712549438800,-1000.0,0.00019737,2]
[321831578,1712549438809,-191.46,0.00019807,2]
[321831579,1712549438818,-325.36382504,0.00019946,2]
[321831580,1712549438827,-222.67485531,0.00019948,2]
[321831581,1712549438836,-175.18304889,0.00019999,2]
[321831582,1712549438845,-1500.0,0.0002,2]
[321831584,1712549438855,-349.81,0.00020101,2]
[321831586,1712549438864,-1369.40763297,0.00020498,2]
[321831588,1712549438874,-150.0,0.000205,2]
[321831590,1712549438883,-1500.0,0.000205,2]
[321831591,1712549438893,-1079.450226,0.000205,2]
[321831592,1712549438904,-525.0,0.00020548,2]
[321831593,1712549438914,-210.0,0.00020587,2]
[321831594,1712549438924,-150.0,0.00020651,2]
[321831595,1712549438933,-150.0,0.00020723,2]
[321831596,1712549438943,-150.0,0.00020726,2]
[321831597,1712549438952,-150.0,0.00020729,2]
[321831598,1712549438960,-150.0,0.0002074,2]
[321831599,1712549438969,-150.0,0.00020754,2]
[321831600,1712549438978,-150.0,0.00020759,2]
[321831601,1712549438987,-1313.0,0.00020772,2]
[321831602,1712549438996,-2468.172,0.00020772,2]
[321831603,1712549439004,-37544.0,0.00020772,2]
[321831604,1712549439013,-5707.0,0.00020772,2]
[321831605,1712549439023,-4793.0,0.00020772,2]
[321831606,1712549439032,-150.0,0.00020775,2]
[321831607,1712549439042,-150.0,0.00020778,2]
[321831608,1712549439050,-1500.0,0.00020782,2]
[321831609,1712549439059,-1369.40763297,0.00020783,2]
[321831610,1712549439068,-1003.5356195,0.00020788,2]
[321831611,1712549439078,-164.24800266,0.0002079,2]
[321831612,1712549439087,-3118.49284934,0.0002079,2]
[321831613,1712549439096,-150.0,0.00020792,2]
[321831614,1712549439104,-150.0,0.00020795,2]
[321831615,1712549439113,-150.0,0.000208,2]
[321831616,1712549439122,-150.0,0.00020801,2]
[321831617,1712549439131,-1500.0,0.00020803,2]
[321831618,1712549439139,-153.67188092,0.00020806,2]
[321831619,1712549439148,-150.0,0.00020807,2]
[321831620,1712549439157,-300.0,0.00020814,2]
[321831621,1712549439166,-150.0,0.00020815,2]
[321831622,1712549439175,-150.0,0.00020815,2]
[321831623,1712549439184,-150.0,0.00020815,2]
[321831624,1712549439193,-150.0,0.0002082,2]
[321831625,1712549439201,-254.44238333,0.00020821,2]
[321831626,1712549439211,-155.0,0.00020821,2]
[321831627,1712549439220,-8926.44361527,0.00020821,2]
[321831628,1712549439230,-500.0,0.00020821,2]
[321831629,1712549439239,-500.0,0.00020821,2]
[321831630,1712549439248,-500.0,0.00020821,2]
[321831631,1712549439257,-692.62,0.00020821,2]
[321831632,1712549439267,-500.0,0.00020821,2]
[321831633,1712549439279,-500.0,0.00020821,2]
[321831634,1712549439288,-500.0,0.00020821,2]
[321831635,1712549439297,-500.0,0.00020821,2]
[321831636,1712549439306,-500.0,0.00020821,2]
[321831637,1712549439316,-500.0,0.00020821,2]
[321831638,1712549439325,-500.0,0.00020821,2]
[321831639,1712549439334,-500.0,0.00020821,2]
[321831640,1712549439343,-500.0,0.00020821,2]
[321831641,1712549439353,-500.0,0.00020821,2]
[321831642,1712549439363,-500.0,0.00020821,2]
[321831643,1712549439371,-500.0,0.00020821,2]
[321831644,1712549439381,-150.0,0.00020822,2]
[321831645,1712549439389,-150.0,0.00020825,2]
[321831646,1712549439399,-500.0,0.00020832,2]
[321831647,1712549439407,-5800.0,0.00020832,2]
[321831648,1712549439416,-150.0,0.00020843,2]
[321831649,1712549439425,-5800.0,0.00020875,2]
[321831650,1712549439434,-150.0,0.00020879,2]
[321831651,1712549439442,-150.0,0.00020881,2]
[321831652,1712549439451,-5800.0,0.00020883,2]
[321831653,1712549439460,-150.0,0.00020891,2]
[321831654,1712549439469,-5800.0,0.00020892,2]
[321831655,1712549439477,-11707.1934,0.00020892,2]
[321831656,1712549439487,-150.0,0.00020894,2]
[321831657,1712549439496,-164.84945765,0.00020896,2]
[321831658,1712549439505,-174.06321027,0.00020899,2]
[321831659,1712549439514,-196.68490256,0.00020899,2]
[321831660,1712549439523,-177.73122657,0.00020899,2]
[321831661,1712549439532,-177.73122657,0.00020899,2]
[321831662,1712549439541,-177.73122657,0.000209,2]
[321831663,1712549439550,-177.73122657,0.000209,2]
[321831664,1712549439559,-177.73122657,0.000209,2]
[321831665,1712549439568,-5800.0,0.000209,2]
[321831666,1712549439578,-263.02368121,0.000209,2]
[321831667,1712549439589,-160.42005366,0.000209,2]
[321831668,1712549439598,-164.84945765,0.000209,2]
[321831669,1712549439608,-157.040812,0.00020908,2]
[321831670,1712549439618,-157.040813,0.00020908,2]
[321831671,1712549439627,-157.040813,0.00020908,2]
[321831672,1712549439638,-157.040813,0.00020908,2]
[321831673,1712549439647,-157.040813,0.00020908,2]
[321831674,1712549439656,-157.040813,0.00020908,2]
[321831675,1712549439665,-157.040813,0.00020908,2]
[321831676,1712549439675,-157.040813,0.00020908,2]
[321831677,1712549439683,-157.040813,0.00020908,2]
[321831678,1712549439692,-157.040813,0.00020908,2]
[321831679,1712549439702,-157.040813,0.00020908,2]
[321831680,1712549439712,-157.040813,0.00020908,2]
[321831681,1712549439722,-1500.0,0.00020912,2]
[321831682,1712549439731,-150.0,0.00020921,2]
[321831683,1712549439743,-150.0,0.00020923,2]
[321831684,1712549439752,-150.0,0.00020923,2]
[321831685,1712549439761,-150.0,0.00020945,2]
[321831686,1712549439771,-150.0,0.00020945,2]
[321831687,1712549439780,-150.0,0.00020961,2]
[321831688,1712549439790,-235.63616857,0.00020967,2]
[321831689,1712549439799,-150.0,0.00020967,2]
[321831690,1712549439808,-150.0,0.00020973,2]
[321831691,1712549439816,-150.0,0.00020984,2]
[321831692,1712549439826,-150.0,0.00020987,2]
[321831693,1712549439835,-309.3557049,0.00020989,2]
[321831694,1712549439844,-4193.16944041,0.0002099,2]
[321831695,1712549439853,-572.4547563,0.00020991,2]
[321831696,1712549439862,-264.26371493,0.00020991,2]
[321831697,1712549439871,-500.0,0.00020991,2]
[321831698,1712549439879,-500.0,0.00020992,2]
[321831699,1712549439888,-500.0,0.00020992,2]
[321831700,1712549439899,-500.0,0.00020992,2]
[321831701,1712549439908,-500.0,0.00020992,2]
[321831702,1712549439917,-518.03470783,0.00020992,2]
[321831703,1712549439925,-500.0,0.00020992,2]
[321831704,1712549439934,-500.0,0.00020992,2]
[321831705,1712549439943,-500.0,0.00020992,2]
[321831706,1712549439952,-520.37437302,0.00020992,2]
[321831707,1712549439961,-537.34784402,0.00020992,2]
[321831708,1712549439970,-521.90154174,0.00020992,2]
[321831709,1712549439979,-514.238416,0.00020992,2]
[321831710,1712549439988,-533.15547978,0.00020992,2]
[321831711,1712549439996,-517.4661923,0.00020992,2]
[321831712,1712549440006,-285.40476592,0.00020992,2]
[321831713,1712549440014,-519.99023859,0.00020992,2]
[321831714,1712549440023,-473.17470898,0.00020992,2]
[321831715,1712549440032,-500.0,0.00020992,2]
[321831716,1712549440040,-531.18472698,0.00020992,2]
[321831717,1712549440049,-525.67875401,0.00020992,2]
[321831718,1712549440058,-643.61468135,0.00020992,2]
[321831719,1712549440067,-538.78243131,0.00020992,2]
[321831720,1712549440076,-531.22653461,0.00020992,2]
[321831721,1712549440085,-537.22999041,0.00020992,2]
[321831722,1712549440094,-500.0,0.00020992,2]
[321831723,1712549440102,-531.06940492,0.00020992,2]
[321831724,1712549440111,-174.35946497,0.00020992,2]
[321831725,1712549440120,-508.81351604,0.00020992,2]
[321831726,1712549440129,-295.32468129,0.00020992,2]
[321831727,1712549440138,-499.9881669,0.00020992,2]
[321831728,1712549440146,-307.20111637,0.00020992,2]
[321831729,1712549440155,-513.11213399,0.00020992,2]
[321831730,1712549440165,-513.4197557,0.00020992,2]
[321831731,1712549440174,-525.60829019,0.00020992,2]
[321831732,1712549440183,-532.48181233,0.00020992,2]
[321831734,1712549440192,-540.16830664,0.00020992,2]
[321831736,1712549440201,-500.0,0.00020992,2]
[321831738,1712549440210,-535.59038521,0.00020992,2]
[321831740,1712549440219,-509.93570741,0.00020992,2]
[321831742,1712549440228,-364.39428373,0.00020992,2]
[321831745,1712549440237,-631.36563148,0.00020992,2]
[321831747,1712549440246,-500.0,0.00020992,2]
[321831749,1712549440255,-500.0,0.00020993,2]
[321831751,1712549440265,-500.0,0.00020993,2]
[321831753,1712549440278,-500.0,0.00020993,2]
[321831755,1712549440289,-514.66,0.00020993,2]
[321831757,1712549440300,-1572.72,0.00020993,2]
[321831759,1712549440309,-435.22,0.00020993,2]
[321831761,1712549440318,-500.0,0.00020993,2]
[321831763,1712549440327,-300.0,0.00020993,2]
[321831765,1712549440336,-595.35784093,0.00020993,2]
[321831767,1712549440345,-500.0,0.00020993,2]
[321831769,1712549440355,-500.0,0.00020993,2]
[321831771,1712549440364,-322.691969,0.00020994,2]
[321831773,1712549440374,-7034.5992626,0.00020994,2]
[321831775,1712549440383,-1286.4947258,0.00020994,2]
[321831776,1712549440391,-590.75689508,0.00020995,2]
[321831777,1712549440401,-500.0,0.00020995,2]
[321831778,1712549440410,-163.12,0.00020995,2]
[321831779,1712549440419,-500.0,0.00020995,2]
[321831780,1712549440427,-500.0,0.00020995,2]
[321831781,1712549440436,-500.0,0.00020995,2]
[321831782,1712549440445,-500.0,0.00020995,2]
[321831783,1712549440454,-500.0,0.00020995,2]
[321831784,1712549440463,-500.0,0.00020995,2]
[321831785,1712549440472,-500.000001,0.00020995,2]
[321831786,1712549440481,-500.0,0.00020995,2]
[321831787,1712549440490,-500.0,0.00020995,2]
[321831788,1712549440499,-500.0,0.00020995,2]
[321831789,1712549440508,-500.0,0.00020995,2]
[321831790,1712549440517,-500.0,0.00020995,2]
[321831791,1712549440527,-500.0,0.00020995,2]
[321831792,1712549440536,-155.07513468,0.00020996,2]
[321831793,1712549440545,-538.82594798,0.00020996,2]
[321831794,1712549440555,-507.87829254,0.00020996,2]
[321831795,1712549440565,-500.0,0.00020996,2]
[321831796,1712549440575,-500.0,0.00020996,2]
[321831797,1712549440584,-517.56,0.00020996,2]
[321831798,1712549440593,-500.0,0.00020996,2]
[321831799,1712549440602,-500.0,0.00020996,2]
[321831800,1712549440611,-515.27525684,0.00020996,2]
[321831801,1712549440621,-536.57701541,0.00020996,2]
[321831802,1712549440631,-500.0,0.00020996,2]
[321831803,1712549440640,-516.98370369,0.00020996,2]
[321831804,1712549440649,-536.41260792,0.00020996,2]
[321831805,1712549440658,-500.0,0.00020996,2]
[321831806,1712549440667,-500.0,0.00020996,2]
[321831807,1712549440676,-500.0,0.00020996,2]
[321831808,1712549440686,-500.0,0.00020996,2]
[321831809,1712549440695,-565.93662853,0.00020996,2]
[321831810,1712549440704,-500.0,0.00020996,2]
[321831811,1712549440713,-500.0,0.00020996,2]
[321831812,1712549440722,-500.0,0.00020996,2]
[321831813,1712549440732,-500.0,0.00020996,2]
[321831814,1712549440741,-500.0,0.00020996,2]
[321831815,1712549440749,-500.0,0.00020996,2]
[321831816,1712549440758,-500.0,0.00020996,2]
[321831817,1712549440767,-406.92449214,0.00020996,2]
[321831818,1712549440776,-500.0,0.00020996,2]
[321831820,1712549440786,-500.0,0.00020996,2]
[321831821,1712549440795,-167.39077663,0.00020996,2]
[321831822,1712549440804,-154.24617264,0.00020996,2]
[321831823,1712549440814,-500.0,0.00020996,2]
[321831824,1712549440823,-500.0,0.00020996,2]
[321831825,1712549440831,-500.0,0.00020996,2]
[321831827,1712549440840,-500.0,0.00020996,2]
[321831828,1712549440849,-500.0,0.00020996,2]
[321831829,1712549440858,-150.0,0.00020996,2]
[321831830,1712549440868,-500.0,0.00020996,2]
[321831831,1712549440877,-500.0,0.00020996,2]
[321831832,1712549440886,-500.0,0.00020996,2]
[321831833,1712549440895,-521.98178168,0.00020996,2]
[321831834,1712549440904,-500.0,0.00020996,2]
[321831835,1712549440913,-500.0,0.00020996,2]
[321831836,1712549440922,-500.0,0.00020996,2]
[321831837,1712549440931,-500.0,0.00020996,2]
[321831838,1712549440940,-514.02,0.00020996,2]
[321831839,1712549440949,-500.0,0.00020996,2]
[321831840,1712549440959,-500.0,0.00020996,2]
[321831841,1712549440968,-500.0,0.00020996,2]
[321831842,1712549440977,-500.0,0.00020996,2]
[321831843,1712549440986,-608.12,0.00020996,2]
[321831844,1712549440995,-500.0,0.00020996,2]
[321831845,1712549441004,-683.29,0.00020996,2]
[321831846,1712549441013,-500.0,0.00020996,2]
[321831847,1712549441022,-156.60058308,0.00020996,2]
[321831848,1712549441031,-500.0,0.00020996,2]
[321831849,1712549441042,-500.0,0.00020996,2]
[321831850,1712549441050,-500.0,0.00020996,2]
[321831851,1712549441060,-500.0,0.00020996,2]
[321831852,1712549441069,-500.0,0.00020996,2]
[321831853,1712549441079,-500.0,0.00020996,2]
[321831855,1712549441088,-500.0,0.00020996,2]
[321831862,1712549441274,-500.0,0.00020996,2]
[321831863,1712549441288,-329.32278709,0.00020996,2]
[321831864,1712549441298,-414.61899809,0.00020996,2]
[321831865,1712549441307,-500.0,0.00020996,2]
[321831866,1712549441316,-523.06,0.00020996,2]
[321831867,1712549441326,-1196.71,0.00020996,2]
[321831868,1712549441335,-603.4,0.00020996,2]
[321831869,1712549441344,-500.0,0.00020996,2]
[321831870,1712549441355,-241.90915966,0.00020996,2]
[321831871,1712549441365,-500.0,0.00020996,2]
[321831872,1712549441374,-1867.82,0.00020996,2]
[321831873,1712549441383,-500.0,0.00020996,2]
[321831874,1712549441392,-500.0,0.00020996,2]
[321831875,1712549441401,-500.0,0.00020996,2]
[321831876,1712549441410,-504.98,0.00020996,2]
[321831877,1712549441420,-500.0,0.00020996,2]
[321831878,1712549441429,-499.96544776,0.00020996,2]
[321831879,1712549441439,-500.0,0.00020996,2]
[321831880,1712549441448,-7713.01,0.00020996,2]
[321831881,1712549441457,-500.0,0.00020996,2]
[321831882,1712549441467,-244.0,0.00020996,2]
[321831883,1712549441476,-500.0,0.00020996,2]
[321831884,1712549441486,-540.03,0.00020996,2]
[321831885,1712549441495,-500.0,0.00020996,2]
[321831886,1712549441505,-522.59,0.00020996,2]
[321831887,1712549441514,-576.87512344,0.00020996,2]
[321831888,1712549441524,-596.08,0.00020996,2]
[321831889,1712549441533,-500.0,0.00020996,2]
[321831890,1712549441545,-500.0,0.00020996,2]
[321831891,1712549441554,-500.0,0.00020996,2]
[321831892,1712549441563,-500.0,0.00020996,2]
[321831893,1712549441573,-395.84437151,0.00020996,2]
[321831894,1712549441582,-519.65992597,0.00020996,2]
[321831895,1712549441591,-500.0,0.00020996,2]
[321831896,1712549441600,-500.0,0.00020996,2]
[321831897,1712549441609,-500.0,0.00020996,2]
[321831898,1712549441619,-605.96345781,0.00020996,2]
[321831899,1712549441628,-647.24,0.00020996,2]
[321831900,1712549441637,-500.0,0.00020996,2]
[321831901,1712549441646,-549.6,0.00020996,2]
[321831902,1712549441655,-500.0,0.00020996,2]
[321831903,1712549441664,-522.80762968,0.00020996,2]
[321831904,1712549441673,-500.0,0.00020996,2]
[321831905,1712549441682,-500.0,0.00020996,2]
[321831906,1712549441691,-500.0,0.00020996,2]